Cogmind - Beta 15 @@@ ROGUE MODE // 2025.10.16 @ 15:15:38 Player: VVRLD_D35TR0YER Result: Self-destructed Performance ------------- Evolutions (3) 1500 Regions Visited (4) 800 Robots Destroyed (28) 140 Value Destroyed (504) 504 Prototype IDs (0) 0 Alien Tech Used (0) 0 Bonus (0) 0 TOTAL SCORE: 2944 Bonus ------- None Cogmind --------- Core Integrity 672/700 Matter 12/300 Energy 100/100 System Corruption 0% Temperature Cool (0) Movement Flying (111) Ox1 Location -7/Factory Parts ------- > --- POWER (1) -------- Backup Power I > --- PROPULSION (4) --- Flight Unit Flight Unit Flight Unit Flight Unit > --- UTILITY (6) ------ Medium Storage Unit Advanced Weight Redist. System Hacking Suite Hacking Suite System Shield > --- WEAPON (2) ------- Gauss Rifle Hammer > --- INVENTORY (10) --- Ion Engine Nuclear Core Cesium-ion Thruster Cooling System Cooling System Gauss Rifle Gauss Rifle Gauss Rifle Heavy Missile Launcher Heavy Missile Launcher Peak State ------------ > --- POWER ------------ Backup Power I > --- PROPULSION ------- Flight Unit Flight Unit Flight Unit Flight Unit > --- UTILITY ---------- Medium Storage Unit Advanced Weight Redist. System Shield Generator Hacking Suite Hacking Suite System Shield > --- WEAPON ----------- Gauss Rifle Gauss Rifle > --- INVENTORY -------- Ion Engine Nuclear Core Cooling System Cooling System Gauss Rifle Gauss Rifle Heavy Missile Launcher Heavy Missile Launcher Hammer [Rating: 30] Favorites ----------- Power Backup Power I Engine Backup Power I Propulsion Flight Unit Leg Aluminum Leg Flight Unit Flight Unit Utility Medium Storage Unit Device Weight Redist. System Storage Medium Storage Unit Hackware Hacking Suite Weapon Hammer Energy Gun EM Pulse Gun Energy Cannon Beam Cannon Ballistic Gun Light Assault Rifle Launcher Grenade Launcher Impact Weapon Hammer Build | -11 -10 -9 -8 -7 ------- Run | Yrd Mat Mat Mat Fac Slots Evolved 6 | . . 2 2 2 Power . | . . . . . Propulsion 2 | . . 1 1 . Utility 4 | . . 1 1 2 Weapon . | . . . . . Parts Attached 31 | . 13 3 4 11 Power 3 | . . . 2 1 Engine 3 | . . . 2 1 Core . | . . . . . Reactor . | . . . . . Propulsion 7 | . 2 2 2 1 Treads . | . . . . . Leg . | . . . . . Wheel . | . . . . . Hover . | . . . . . Flight 7 | . 2 2 2 1 Utility 10 | . 5 1 . 4 Device 5 | . 3 . . 2 Storage 2 | . 2 . . . Processor . | . . . . . Hackware 3 | . . 1 . 2 Protection . | . . . . . Artifact . | . . . . . Weapon 11 | . 6 . . 5 Energy Gun . | . . . . . Energy Cannon 1 | . 1 . . . Ballistic Gun 6 | . 3 . . 3 Ballistic Cannon . | . . . . . Launcher 3 | . 1 . . 2 Special Weapon . | . . . . . Impact Weapon 1 | . 1 . . . Slashing Weapon . | . . . . . Piercing Weapon . | . . . . . Special Melee Weapon . | . . . . . Unidentified Prototypes . | . . . . . Parts Lost 7 | . 3 1 2 1 Power 1 | . 1 . . . Propulsion 2 | . . 1 1 . Utility 3 | . 1 . 1 1 Weapon 1 | . 1 . . . Highest Loss Streak 2 | . 1 1 2 1 To Critical Strikes . | . . . . . Average Backups 8 | . 8 8 8 9 Power 1 | . 1 2 2 2 Propulsion 3 | . 5 3 1 . Utility 1 | . . 3 2 2 Weapon 1 | . 1 . 1 4 Tool/Special . | . . . . . Unused Backups 24 | . 17 . . 7 Power 2 | . 1 . . 1 Propulsion 10 | . 9 . . 1 Utility 3 | . 1 . . 2 Weapon 9 | . 6 . . 3 Tool/Special . | . . . . . Average Slot Usage (%) 91 | . 87 98 98 90 Engine 7 | . 6 11 9 7 Leg 6 | . 12 . . . Flight 22 | . 15 32 36 30 Device 12 | . 11 11 16 13 Storage 11 | . 14 11 9 7 Hackware 5 | . . 10 9 14 Energy Gun 1 | . 3 . . . Ballistic Gun 9 | . 15 . . 2 Launcher 5 | . 3 11 9 5 Impact Weapon 5 | . 3 11 9 6 Peak Build Rating 30 | . 10 13 15 30 Average Rating 12 | . 7 12 14 23 On Entrance 9 | 6 6 9 13 14 Naked Turns . | . . . . . Heaviest Build 29 | 13 29 17 21 26 Greatest Support 26 | 20 26 18 22 25 Greatest Overweight (x) 2 | . 2 1 . 1 Average Overweight (x) . | . . . . . Largest Inventory Capacity 15 | . 15 10 10 10 Average Capacity 11 | . 11 10 10 10 Most Carried 11 | . 11 10 9 10 Average Carried 9 | . 8 8 8 9 Final Capacity 10 | 8 10 10 10 10 Final Carried 10 | 6 10 9 8 10 Class Distribution -------------------- 70% | Mutant 15% | Hacker-Mutant 7% | Scavenger-Sprinter 4% | Scavenger-Mutant Dominant Class ---------------- Mutant | -10/Materials Mutant | -9/Materials Scavenger-Sprinter | -8/Materials Hacker-Mutant | -7/Factory Resources | -11 -10 -9 -8 -7 ----------- Run | Yrd Mat Mat Mat Fac Matter Collected 523 | 200 217 18 . 88 Remotely . | . . . . . Salvage Created 725 | . 518 119 . 88 Parts 42 | . 30 9 . 3 Haulers Intercepted 1 | . 1 . . . Recyclers Shooed 1 | . . . . 1 Parts Field Recycled . | . . . . . Retrieved Matter . | . . . . . Parts Self-Destructed . | . . . . . Prevented . | . . . . . Kills | -11 -10 -9 -8 -7 ------- Run | Yrd Mat Mat Mat Fac Combat Hostiles Destroyed 14 | . 11 3 . . Guns 10 | . 10 . . . AOE 4 | . 1 3 . . Classes Destroyed 8 | . 6 1 . 1 Worker 3 | . 1 2 . . Tunneler 1 | . . . . 1 Hauler 1 | . 1 . . . Recycler 2 | . . 1 . 1 Operator 4 | . 2 1 . 1 Watcher 3 | . 1 2 . . Swarmer 6 | . 3 3 . . Grunt 8 | . 8 . . . Best Kill Streak 6 | . 4 6 . 2 Combat Bots Only 4 | . 4 2 . . Max Kills in Single Turn 5 | . 1 5 . 1 Gunslinging . | . . . . . Exploded 1 | . 1 1 . . Melee . | . . . . . Uniques/NPCs Destroyed . | . . . . . Combat | -11 -10 -9 -8 -7 -------- Run | Yrd Mat Mat Mat Fac Hostile Shots Fired 114 | . 64 17 25 8 Missed 37 | . 17 9 9 2 Hits 77 | . 47 8 16 6 Projectile 77 | . 47 8 16 6 Damage Taken 1034 | . 613 99 233 89 Core 278 | . 175 36 39 28 Absorbed by Shields . | . . . . . Core Remaining (%) 78 | 100 30 91 92 . Volleys Fired 67 | . 56 5 . 6 Largest 2 | . 2 1 . 2 Hottest 60 | . 60 30 . 56 Shots Fired 120 | . 105 5 . 10 Gun 115 | . 105 . . 10 Cannon . | . . . . . Launcher 5 | . . 5 . . Special . | . . . . . Kinetic 102 | . 92 . . 10 Thermal . | . . . . . Explosive 5 | . . 5 . . Electromagnetic 13 | . 13 . . . Robot Hit Streak 7 | . 7 . . 5 Robot Miss Streak 5 | . 5 . . 2 Penetration Max . | . . . . . Secondary Targets 1 | . 1 . . . Max Gunslinging Chain 1 | . 1 . . . Shots Hit Robots 86 | . 67 1 7 11 Core Hits 42 | . 30 11 . 1 Critical Kills 1 | . 1 . . . Critical Parts Destroyed 1 | . . . 1 . Critical Strikes 4 | . 2 . 2 . Destroy 1 | . 1 . . . Corrupt 1 | . 1 . . . Smash 2 | . . . 2 . Melee Attacks 41 | . 8 12 8 13 Impact 41 | . 8 12 8 13 Slashing . | . . . . . Piercing . | . . . . . Sneak Attacks 7 | . 3 1 . 3 Combat Hostiles . | . . . . . Follow-up Attacks . | . . . . . Damage Inflicted 1852 | . 847 495 138 372 Guns 757 | . 621 . . 136 Cannons . | . . . . . Explosions 480 | . 30 450 . . Melee 615 | . 196 45 138 236 Ramming . | . . . . . Kinetic 657 | . 521 . . 136 Thermal 30 | . 30 . . . Explosive 450 | . . 450 . . Electromagnetic 100 | . 100 . . . Impact 615 | . 196 45 138 236 Slashing . | . . . . . Piercing . | . . . . . Highest Corruption . | . . . . . Average Corruption . | . . . . . Corruption Purged . | . . . . . Corruption Blocked . | . . . . . Overload Shots . | . . . . . Overflow Damage 217 | . 56 77 12 72 Projectiles . | . . . . . Explosions 62 | . . 62 . . Melee 155 | . 56 15 12 72 Knockbacks 5 | . 2 . . 3 Impact 5 | . 2 . . 3 Kinetic . | . . . . . Secondary . | . . . . . Self-Inflicted Damage 53 | . 53 . . . Shots 1 | . 1 . . . Rammed . | . . . . . Targets Rammed 1 | . 1 . . . Kicked 1 | . 1 . . . Crushed . | . . . . . Highest Temperature 61 | . 61 . . . Average Temperature 12 | . 12 . . . Received Heat Transfer 384 | . 282 30 54 18 Siege Activations . | . . . . . Martial Activations . | . . . . . Shielding Activations . | . . . . . Robots Disrupted . | . . . . . Combat Hostiles . | . . . . . Robots Corrupted 4 | . 2 . . 2 Combat Hostiles . | . . . . . Parts Fried 4 | . 3 . . 1 Impact Corruptions 10 | . 5 1 1 3 Robots Melted . | . . . . . Combat Hostiles . | . . . . . Parts Melted . | . . . . . Heat Transferred 50 | . 50 . . . Parts Sabotaged . | . . . . . Parts Stolen . | . . . . . Parts Stripped . | . . . . . Power Chain Reactions 1 | . 1 . . . Alert | -11 -10 -9 -8 -7 ------- Run | Yrd Mat Mat Mat Fac Maximum Alert Level 1 | . . 1 . . Low Security (%) 98 | . 100 89 100 100 Level 1 1 | . . 10 . . Level 2 . | . . . . . Level 3 . | . . . . . Level 4 . | . . . . . Level 5 . | . . . . . High Security . | . . . . . Max Security . | . . . . . Peak Influence 233 | . 137 233 98 14 Initial 98 | . . . 98 14 Average 41 | . 43 74 74 2 Influence Increases 707 | . 336 319 15 37 Destroy 0b10 Robot/C 280 | . 220 60 . . Destroy 0b10 Robot/NC 70 | . 25 30 . 15 Destroy Leader 68 | . 54 14 . . Successful Hack 26 | . . 10 . 16 Select Force Hacks 30 | . . 30 . . Disable Machine 15 | . 15 . . . Destroy Structure 53 | . 7 40 . 6 Partial Spotted 75 | . . 60 15 . Lose Combat Pursuer 90 | . 15 75 . . Influence Decreases 706 | . 336 86 215 69 Entered New Map 154 | . . . 135 19 Time Decay 491 | . 306 76 60 49 Lost Part 61 | . 30 10 20 1 Squads Dispatched 12 | . 4 3 . 5 Investigation 6 | . 1 2 . 3 Extermination 1 | . . . . 1 Reinforcement 5 | . 3 1 . 1 Assault . | . . . . . Garrison . | . . . . . Intercept . | . . . . . Searches Triggered . | . . . . . Construction Impeded . | . . . . . Haulers Reinforced . | . . . . . Active Scanning Responses . | . . . . . Cargo Convoy Interrupts . | . . . . . Stealth | -11 -10 -9 -8 -7 --------- Run | Yrd Mat Mat Mat Fac Distress Signals 5 | . 1 2 1 1 Communications Jammed . | . . . . . Distress Signals . | . . . . . Times Spotted 46 | . 20 13 7 6 Peak Tracking Total 7 | . 6 7 7 5 Tactical Retreats 4 | . 1 3 . . Traps | -11 -10 -9 -8 -7 ------- Run | Yrd Mat Mat Mat Fac Traps Triggered 2 | . 1 1 . . Indirectly . | . . . . . Trap Hack Attempts . | . . . . . Triggered . | . . . . . Disarmed . | . . . . . Reprogrammed . | . . . . . Reused . | . . . . . Traps Extracted . | . . . . . Installed . | . . . . . Triggered . | . . . . . Machines | -11 -10 -9 -8 -7 ---------- Run | Yrd Mat Mat Mat Fac Machines Disabled 1 | . 1 . . . Max in Single Turn 1 | . 1 . . . Machines Repaired . | . . . . . Machines Dismantled . | . . . . . Machines Sabotaged . | . . . . . Overloaded Fab Kills . | . . . . . Hacking | -11 -10 -9 -8 -7 --------- Run | Yrd Mat Mat Mat Fac Machines Accessed 10 | . 1 4 1 4 Terminals 7 | . . 2 1 4 Fabricators . | . . . . . Repair Stations 1 | . 1 . . . Recycling Units . | . . . . . Scanalyzers 2 | . . 2 . . Garrison Access . | . . . . . Total Hacks 29 | . 1 10 2 16 Successful 12 | . 1 8 . 3 Failed 17 | . . 2 2 13 Catastrophic 3 | . . . . 3 Database Lockouts . | . . . . . Manual 16 | . . 5 . 11 Terminals 24 | . . 6 2 16 Fabricators . | . . . . . Repair Stations 1 | . 1 . . . Recycling Units . | . . . . . Scanalyzers 4 | . . 4 . . Garrison Access . | . . . . . Terminal Hacks 3 | . . 3 . . Terminal Index 1 | . . 1 . . Registered Components 1 | . . 1 . . Zone Layout 1 | . . 1 . . Fabricator Hacks . | . . . . . Repair Station Hacks 1 | . 1 . . . Refit 1 | . 1 . . . Recycling Unit Hacks . | . . . . . Scanalyzer 2 | . . 2 . . Insert Component 1 | . . 1 . . Analyze 1 | . . 1 . . Garrison Access Hacks . | . . . . . Unauthorized Hacks 6 | . . 3 . 3 Terminals 5 | . . 2 . 3 Botnet 3 | . . 1 . 2 Disrupt 1 | . . 1 . . Operators 1 | . . . . 1 Fabricators . | . . . . . Repair Stations . | . . . . . Recycling Units . | . . . . . Scanalyzers 1 | . . 1 . . Extract 1 | . . 1 . . Garrison Access . | . . . . . Data Cores Recovered . | . . . . . Used . | . . . . . Hacking Detections 10 | . 1 4 1 4 Full Trace Events 3 | . . . . 3 Feedback Events . | . . . . . Feedback Blocked . | . . . . . Robot Schematics Acquired . | . . . . . Robots Built . | . . . . . Authchips . | . . . . . Time . | . . . . . Total Robot Build Rating . | . . . . . Part Schematics Acquired 2 | . . 2 . . Parts Built . | . . . . . Authchips . | . . . . . Time . | . . . . . Total Part Build Rating . | . . . . . Parts Repaired . | . . . . . Time . | . . . . . Parts Recycled . | . . . . . Recycled Matter . | . . . . . Retrieved Matter . | . . . . . Retrieved Components . | . . . . . Parts Scanalyzed 1 | . . 1 . . Part Schematics Acquired 1 | . . 1 . . Parts Damaged . | . . . . . Bothacking | -11 -10 -9 -8 -7 ------------ Run | Yrd Mat Mat Mat Fac Used RIF Installer . | . . . . . Robots Hacked . | . . . . . Non-combat . | . . . . . Combat . | . . . . . Robot Hacks Applied . | . . . . . Relay Couplers Released . | . . . . . Fabnet Peak Effective % . | . . . . . Robots Rewired . | . . . . . Allies Hacked . | . . . . . Hacks Repelled . | . . . . . Allies | -11 -10 -9 -8 -7 -------- Run | Yrd Mat Mat Mat Fac Total Allies . | . . . . . Largest Group . | . . . . . Highest-Rated Group . | . . . . . Highest-Rated Ally . | . . . . . Total Orders . | . . . . . Ally Attacks . | . . . . . Total Damage . | . . . . . Kills . | . . . . . Allies Corrupted . | . . . . . Allies Melted . | . . . . . Intel | -11 -10 -9 -8 -7 ------- Run | Yrd Mat Mat Mat Fac Active Infowar (turns) 150 | . 5 46 99 . Seismic 150 | . 5 46 99 . Robot Analysis Total . | . . . . . Derelict Logs Recovered . | . . . . . Drone Launches . | . . . . . Drone Recoveries . | . . . . . Exploration | -11 -10 -9 -8 -7 ------------- Run | Yrd Mat Mat Mat Fac Turns Passed 1399 | . 786 198 121 294 Spaces Moved 1186 | 1 432 273 164 316 Core 94 | . . . . 94 Treads . | . . . . . Legs 109 | 1 108 . . . Wheels . | . . . . . Hover . | . . . . . Flight 983 | . 324 273 164 222 Fastest Speed 31 | 120 37 34 31 31 Average Speed 71 | 120 116 34 31 62 Slowest Speed 200 | 120 200 114 31 111 Overloaded Moves . | . . . . . Propulsion Burnouts . | . . . . . Robots Hopped 4 | . 1 3 . . Potential Cave-ins . | . . . . . Cave-ins Triggered . | . . . . . Exploration Rate (%) 28 | 2 74 37 19 9 Regions Visited 4 Branch Regions . Pre-discovered Areas . | . . . . . Known Exits Taken . | . . . . . Unknown Exits Taken 4 | 1 1 1 1 . Scrap Searched . | . . . . . Spaces Dug 25 | . 3 16 . 6 Terrain Destroyed 54 | . 6 42 . 6 Melee 17 | . 3 8 . 6 Projectile . | . . . . . AOE 37 | . 3 34 . . Terrain Rammed . | . . . . . Walls Destroyed . | . . . . . Machines Disabled . | . . . . . Actions | -11 -10 -9 -8 -7 --------- Run | Yrd Mat Mat Mat Fac Total 1556 | . 617 343 218 378 Wait 164 | . 63 44 38 19 Move 1174 | . 429 266 163 316 Hop 4 | . 1 3 . . Pick Up 30 | . 18 2 3 7 Fast Attach 11 | . 8 . . 3 Attach 12 | . 4 3 3 2 Detach 6 | . 6 . . . Swap 20 | . 3 8 2 7 Drop 26 | . 20 . 1 5 Fire 67 | . 56 5 . 6 Melee 41 | . 8 12 8 13 Ram . | . . . . . Kick 1 | . 1 . . . Crush . | . . . . . Escape Stasis . | . . . . . Rewire . | . . . . . Trap . | . . . . . Miscellaneous . | . . . . . Route ------- -11/Scrapyard -10/Materials (discovered 5 exits: *Mat x3 / [*Min] / [*Sub]) -9/Materials (discovered 3 exits: *Mat / [*Min x2]) -8/Materials -7/Factory History --------- Turn | Location | Event 1 | -11/Scrapyard | Discovered new exit (range 0) 1 | -11/Scrapyard | Entered Materials 107 | -10/Materials | Discovered new exit (range 12) 302 | -10/Materials | Core integrity fell below 50% 315 | -10/Materials | Build established: Mutant 338 | -10/Materials | Discovered new exit (range 16) 455 | -10/Materials | Discovered new exit (range 6) 533 | -10/Materials | Discovered new exit (range 8) 596 | -10/Materials | Discovered new exit (range 16) 701 | -10/Materials | Derelicts attacked the area 787 | -10/Materials | Entered another Materials area 787 | -9/Materials | Evolved 2 slots: Propulsion x1, Utility x1 789 | -9/Materials | Discovered new exit (range 8) 879 | -9/Materials | Discovered new exit (range 16) 966 | -9/Materials | Discovered new exit (range 16) 985 | -9/Materials | Entered another Materials area 985 | -8/Materials | Evolved 2 slots: Propulsion x1, Utility x1 1079 | -8/Materials | Discovered new exit (range 15) 1106 | -8/Materials | Entered Factory 1106 | -7/Factory | Evolved 2 slots: Utility x2 1400 | -7/Factory | Self-destructed Last Messages --------------- 01284_ Slug penetrates Wall. 01284_ Slug penetrates U-05 Engineer. 01287_ Slug penetrates O-16 Technician. 01287_ O-16 Technician destroyed. 01288_ ALERT: Potential suspicious activity detected, Programmers report to Factory Zone 8R. 01289_ R-06 Scavenger collects Datajack. 01290_ Slug penetrates R-06 Scavenger. 01291_ ALERT: Hostiles spotted, dispatching reinforcements to Terminal F015. 01301_ Acquired Hacking Suite. 01302_ Acquired 13 matter. 01307_ K-01 Serf collects debris. 01351_ U-05 Engineer builds a Wall. 01359_ Acquired Cesium-ion Thruster. 01373_ Slug penetrates O-16 Technician. 01385_ W-25 Informer sends out distress signal. 01393_ T-07 Excavator is excavating. 01396_ Shield Generator destroyed. Map ----- +----------------------------------------------------+ | ???????????????????###### #???? | | ??????????########## #???? | | ??????????# # #???? | | ??????????# """" / ^ #???? | | ??????????# """" ] # ##+###???? | | ??????????# """" # #????????? | | ??????????# """" # #????????? | | ??????????# """" # #????????? | | ??????????# """" # #????????? | | ??????????# """" # #????????? | | ??????????# # #????????? | | ??????????########## #????????? | | ??????###### ####### #????????? | | ??????# # = #????????? | | ??????# # #????????? | | ??????# # #????????? | | ??????# # #????????? | | ??????# """ """ # #????????? | | ??????# """ """ #^ #????????? | | ??????# """ """ # ^ #????????? | | ??????# # #????????? | | ??????# """ # #????????? | | ??????# = """ ?# #????????? | | ??????# =/ """ / +????????? | | ??????# # ?????????? | | ??????##@########### ?##??????? | | ???????## #? #??????? | | ????????# ! #? ####???? | | ????????# # ??? | | ????????# / T ??? | | ????????# # ??? | | ????????# #? ##+#???? | | ????????# #?? ] #??????? | | ????????# #????# ##??????? | | ????????# #??????#???????? | | ????????##########??????????????? | | ?????????????????????????????o??? | | ????????????????????????????????? | | ????????????????????????????????? | | ????????????????????????????????? | | ????????????????????????????????? | | ????????????????????????????????? | | ????????????????????????????????? | | ????????????????????????????????? | | ????????????????????????????????? | | ????????????????????????????????? | | ????????????????????????????????? | | ????????????????????????????????? | | ????????????????????????????????? | | ????????????????????????????????? | +----------------------------------------------------+ Best States ------------- Heat Dissipation 39 Energy Generation 10 Energy Capacity 250 Matter Stores 300 Matter Capacity 300 Sight Range 16 Terrain Scan Density 10 Additional Mass Support 9 Evasion (%) 63 Offensive Hacking 20 Defensive Hacking 10 Item Schematics ----------------- Cooling System | -9/Materials | Scanalyzed Shield Generator | -9/Materials | Extracted Robot Schematics ------------------ None Fabricated ------------ Nothing Repaired ---------- Nothing Alien Tech Used ----------------- None Achievements -------------- None Challenges ------------ None Game ------ Seed SwordRocketPropulsion Manual? 0 Play Time 00:24:07 Cumulative 214.2 hours Start 2025.10.16 @ 14:53:45 End 2025.10.16 @ 15:15:38 Sessions 1 Manual Loads 0 Difficulty Rogue Special Mode None Game No. 219 Rogue 219 Adventurer 0 Explorer 0 Win Type - Total 3 Types 3/0/0/0/0/0/0/0/0/0 Lore% 73 Gallery% 70 Achievement% 66 Wizard Run 0 Options --------- Layout 1 ASCII 1 Keyboard 1 Movement Vi Keybinds 0 Fullscreen 1 Font 24/Tallcaps Map View 50x35 Zoom Use 0% Tactical HUD 1 Map Filters NONE Filters NONE Steam X RUN: 562924d2-b4c9-4a96-8339-39c18c674b79